[Event "*** SCC Grand Prix: Titled Tuesday Blitz"]
[Site "Chess.com"]
[Date "2020.06.09"]
[Round "5"]
[White "imdvb6307"]
[Black "Roman_Ovetchkin"]
[Result "1-0"]
[WhiteElo "2401"]
[BlackElo "2569"]
[TimeControl "180+1"]
[EndTime "9:56:57 PDT"]
[Termination "imdvb6307 won on time"]

1. c4 {[%clk 0:03:00.1]} 1... Nf6 {[%clk 0:02:59.4]} 2. Nc3 {[%clk 0:02:59.5]}
2... g6 {[%clk 0:02:59.9]} 3. Nf3 {[%clk 0:02:58.5]} 3... Bg7 {[%clk 0:02:59.7]}
4. d4 {[%clk 0:02:58.6]} 4... O-O {[%clk 0:02:58.9]} 5. e4 {[%clk 0:02:58]} 5...
d6 {[%clk 0:02:58.8]} 6. Be2 {[%clk 0:02:57.6]} 6... e5 {[%clk 0:02:58.7]} 7.
O-O {[%clk 0:02:57.3]} 7... Nc6 {[%clk 0:02:57.1]} 8. d5 {[%clk 0:02:56.9]} 8...
Ne7 {[%clk 0:02:57.2]} 9. Ne1 {[%clk 0:02:57.4]} 9... Nd7 {[%clk 0:02:56.7]} 10.
f3 {[%clk 0:02:58]} 10... f5 {[%clk 0:02:56.8]} 11. g4 {[%clk 0:02:58.5]} 11...
f4 {[%clk 0:02:53.8]} 12. h4 {[%clk 0:02:48.6]} 12... Nf6 {[%clk 0:02:29.5]} 13.
Nd3 {[%clk 0:02:45.9]} 13... c6 {[%clk 0:02:23.2]} 14. Kg2 {[%clk 0:02:42.3]}
14... b5 {[%clk 0:02:17.8]} 15. Nb4 {[%clk 0:02:14.5]} 15... cxd5 {[%clk
0:01:11.6]} 16. cxd5 {[%clk 0:02:05.1]} 16... a6 {[%clk 0:00:57.5]} 17. a4
{[%clk 0:01:36.4]} 17... Bd7 {[%clk 0:00:39.6]} 18. axb5 {[%clk 0:01:32.8]}
18... axb5 {[%clk 0:00:39.7]} 19. Rxa8 {[%clk 0:01:30.2]} 19... Qxa8 {[%clk
0:00:40.6]} 20. Bd2 {[%clk 0:01:12.3]} 20... Qb7 {[%clk 0:00:30.2]} 21. Bd3
{[%clk 0:01:07]} 21... h5 {[%clk 0:00:20.5]} 22. g5 {[%clk 0:01:06.5]} 22... Ng4
{[%clk 0:00:20.8]} 23. Qe2 {[%clk 0:00:52.3]} 23... Ne3+ {[%clk 0:00:19.7]} 24.
Bxe3 {[%clk 0:00:50]} 24... fxe3 {[%clk 0:00:20.6]} 25. Nd1 {[%clk 0:00:47.2]}
25... Rf4 {[%clk 0:00:20.1]} 26. Rh1 {[%clk 0:00:45.8]} 26... Qa7 {[%clk
0:00:17.8]} 27. Nxe3 {[%clk 0:00:41.8]} 27... Qc5 {[%clk 0:00:16.7]} 28. Nbc2
{[%clk 0:00:39.8]} 28... b4 {[%clk 0:00:15.5]} 29. b3 {[%clk 0:00:32.9]} 29...
Kh7 {[%clk 0:00:13.2]} 30. Qd2 {[%clk 0:00:31.8]} 30... Qc8 {[%clk 0:00:10.8]}
31. Nxb4 {[%clk 0:00:22.6]} 31... Qf8 {[%clk 0:00:08.8]} 32. Qe2 {[%clk
0:00:18.7]} 32... Nc8 {[%clk 0:00:05.9]} 33. Nbc2 {[%clk 0:00:17.8]} 33... Qe7
{[%clk 0:00:06]} 34. Kg3 {[%clk 0:00:17.2]} 34... Nb6 {[%clk 0:00:04.9]} 35. Ng2
{[%clk 0:00:16.9]} 35... Rf8 {[%clk 0:00:04.3]} 36. Ra1 {[%clk 0:00:15.6]} 36...
Rb8 {[%clk 0:00:03.4]} 37. Qd2 {[%clk 0:00:15.1]} 37... Qd8 {[%clk 0:00:03.1]}
38. Nce3 {[%clk 0:00:13.8]} 38... Be8 {[%clk 0:00:03]} 39. b4 {[%clk 0:00:13.7]}
39... Nd7 {[%clk 0:00:03]} 40. b5 {[%clk 0:00:13]} 40... Qc7 {[%clk 0:00:01.5]}
41. Qc2 {[%clk 0:00:11.8]} 1-0

[Event "*** SCC Grand Prix: Titled Tuesday Blitz"]
[Site "Chess.com"]
[Date "2020.06.09"]
[Round "5"]
[White "JulAnt"]
[Black "silverback96"]
[Result "0-1"]
[WhiteElo "2362"]
[BlackElo "2197"]
[TimeControl "180+1"]
[EndTime "9:56:57 PDT"]
[Termination "silverback96 won by checkmate"]

1. e4 {[%clk 0:03:00.9]} 1... e6 {[%clk 0:02:10.9]} 2. d4 {[%clk 0:03:00.4]}
2... d5 {[%clk 0:02:10.5]} 3. Nd2 {[%clk 0:03:00.6]} 3... Nf6 {[%clk 0:02:10.1]}
4. e5 {[%clk 0:03:00.8]} 4... Nfd7 {[%clk 0:02:10.7]} 5. c3 {[%clk 0:02:58]}
5... c5 {[%clk 0:02:11.6]} 6. Bd3 {[%clk 0:02:58.2]} 6... Nc6 {[%clk 0:02:12]}
7. Ne2 {[%clk 0:02:58.2]} 7... cxd4 {[%clk 0:02:12.4]} 8. cxd4 {[%clk
0:02:58.8]} 8... f6 {[%clk 0:02:12.9]} 9. exf6 {[%clk 0:02:59]} 9... Nxf6 {[%clk
0:02:13.8]} 10. O-O {[%clk 0:02:57.9]} 10... Bd6 {[%clk 0:02:14.1]} 11. Nf3
{[%clk 0:02:57.9]} 11... Qc7 {[%clk 0:02:14.7]} 12. Bg5 {[%clk 0:02:55.8]} 12...
O-O {[%clk 0:02:14.7]} 13. Bh4 {[%clk 0:02:55.4]} 13... Nh5 {[%clk 0:02:14.9]}
14. Qc2 {[%clk 0:02:55.1]} 14... g6 {[%clk 0:02:15.4]} 15. Bxg6 {[%clk
0:02:40.9]} 15... Nf4 {[%clk 0:02:12.8]} 16. Bd3 {[%clk 0:02:23.4]} 16... Qg7
{[%clk 0:01:36.4]} 17. Bg3 {[%clk 0:02:12.3]} 17... Nb4 {[%clk 0:01:32.4]} 18.
Qd2 {[%clk 0:01:51.4]} 18... Nbxd3 {[%clk 0:01:31.7]} 19. Nxf4 {[%clk
0:01:50.9]} 19... Nxf4 {[%clk 0:01:32.6]} 20. Rfe1 {[%clk 0:01:48.9]} 20... Bd7
{[%clk 0:01:25.3]} 21. a3 {[%clk 0:01:47.9]} 21... Rac8 {[%clk 0:01:23.5]} 22.
Ne5 {[%clk 0:01:41.4]} 22... Bxe5 {[%clk 0:01:23.1]} 23. Rxe5 {[%clk 0:01:41.2]}
23... Ng6 {[%clk 0:01:21.5]} 24. Re2 {[%clk 0:01:39.7]} 24... Rc4 {[%clk
0:01:22]} 25. Rd1 {[%clk 0:01:36.8]} 25... Rfc8 {[%clk 0:01:22.2]} 26. b3 {[%clk
0:01:32.9]} 26... Rc3 {[%clk 0:01:21.2]} 27. h4 {[%clk 0:01:25.1]} 27... Rxb3
{[%clk 0:01:11.3]} 28. h5 {[%clk 0:01:25.1]} 28... Ne7 {[%clk 0:01:11]} 29. Be5
{[%clk 0:01:23.1]} 29... Qg4 {[%clk 0:01:11]} 30. Rde1 {[%clk 0:01:21.9]} 30...
Nf5 {[%clk 0:01:09.5]} 31. Bf6 {[%clk 0:01:15.9]} 31... Nh4 {[%clk 0:01:06]} 32.
Bxh4 {[%clk 0:01:12.2]} 32... Qxh4 {[%clk 0:01:06.9]} 33. Qh6 {[%clk 0:01:12.1]}
33... Rf8 {[%clk 0:01:00.1]} 34. Re5 {[%clk 0:01:03.3]} 34... Qxf2+ {[%clk
0:00:57.8]} 35. Kh1 {[%clk 0:01:03.7]} 35... Qh4+ {[%clk 0:00:58.2]} 36. Kg1
{[%clk 0:01:03.8]} 36... Qxd4+ {[%clk 0:00:45.9]} 37. Kh1 {[%clk 0:01:03.1]}
37... Qh4+ {[%clk 0:00:43.4]} 38. Kg1 {[%clk 0:01:03.5]} 38... Rg3 {[%clk
0:00:39.1]} 39. R1e2 {[%clk 0:00:47.3]} 39... d4 {[%clk 0:00:27.9]} 40. Qd2
{[%clk 0:00:41.3]} 40... d3 {[%clk 0:00:27.2]} 41. R2e4 {[%clk 0:00:41.3]} 41...
Qf6 {[%clk 0:00:22.3]} 42. Qb2 {[%clk 0:00:35.6]} 42... Bc6 {[%clk 0:00:14.5]}
43. Kh2 {[%clk 0:00:30.2]} 43... Bxe4 {[%clk 0:00:12.5]} 44. Kxg3 {[%clk
0:00:30.4]} 44... Qf4+ {[%clk 0:00:12.5]} 45. Kh3 {[%clk 0:00:28.4]} 45... Bf5+
{[%clk 0:00:12.3]} 46. g4 {[%clk 0:00:28.8]} 46... Bxg4+ {[%clk 0:00:11.7]} 47.
Kh4 {[%clk 0:00:29.1]} 47... Bf5# {[%clk 0:00:09.7]} 0-1

[Event "*** SCC Grand Prix: Titled Tuesday Blitz"]
[Site "Chess.com"]
[Date "2020.06.09"]
[Round "5"]
[White "ferdipy"]
[Black "Shushik"]
[Result "1-0"]
[WhiteElo "2350"]
[BlackElo "2160"]
[TimeControl "180+1"]
[EndTime "9:56:57 PDT"]
[Termination "ferdipy won by resignation"]

1. e4 {[%clk 0:03:00.9]} 1... e5 {[%clk 0:02:57.2]} 2. Nf3 {[%clk 0:03:00.8]}
2... Nc6 {[%clk 0:02:57]} 3. Bc4 {[%clk 0:03:01.1]} 3... Bc5 {[%clk 0:02:55.9]}
4. b4 {[%clk 0:02:59.8]} 4... Bxb4 {[%clk 0:02:55]} 5. c3 {[%clk 0:02:59.4]}
5... Ba5 {[%clk 0:02:55.2]} 6. d4 {[%clk 0:02:59.5]} 6... d6 {[%clk 0:02:55.2]}
7. Qb3 {[%clk 0:02:57.4]} 7... Qd7 {[%clk 0:02:49.7]} 8. O-O {[%clk 0:02:54.5]}
8... Bb6 {[%clk 0:02:38.7]} 9. Qc2 {[%clk 0:02:48.3]} 9... Nf6 {[%clk
0:02:32.9]} 10. Bb5 {[%clk 0:02:45.4]} 10... O-O {[%clk 0:02:18.1]} 11. Bg5
{[%clk 0:02:38.6]} 11... Qe7 {[%clk 0:01:48.7]} 12. Re1 {[%clk 0:02:33.2]} 12...
Bg4 {[%clk 0:01:44.9]} 13. Nbd2 {[%clk 0:02:22.7]} 13... exd4 {[%clk 0:01:41.9]}
14. Bxc6 {[%clk 0:02:19.5]} 14... bxc6 {[%clk 0:01:41.6]} 15. cxd4 {[%clk
0:02:20.1]} 15... Qe6 {[%clk 0:01:21.4]} 16. Qxc6 {[%clk 0:02:16.4]} 16... Nd7
{[%clk 0:01:14.3]} 17. h3 {[%clk 0:02:06.1]} 17... Bxf3 {[%clk 0:01:12.1]} 18.
Nxf3 {[%clk 0:02:05.6]} 18... f6 {[%clk 0:01:09.6]} 19. Bh4 {[%clk 0:02:03.6]}
19... Qf7 {[%clk 0:01:05.7]} 20. a4 {[%clk 0:01:59.1]} 20... a5 {[%clk
0:01:04.3]} 21. Bg3 {[%clk 0:01:54.2]} 21... Rfe8 {[%clk 0:01:00.4]} 22. Re2
{[%clk 0:01:49.4]} 22... Nf8 {[%clk 0:00:50.7]} 23. e5 {[%clk 0:01:40]} 23...
fxe5 {[%clk 0:00:48.5]} 24. dxe5 {[%clk 0:01:40.1]} 24... dxe5 {[%clk
0:00:47.6]} 25. Nxe5 {[%clk 0:01:38.1]} 25... Qe6 {[%clk 0:00:29.9]} 26. Qb7
{[%clk 0:01:35.6]} 26... Rab8 {[%clk 0:00:26.2]} 27. Qf3 {[%clk 0:01:32.6]}
27... Qf6 {[%clk 0:00:22.9]} 28. Qb3+ {[%clk 0:01:29.4]} 28... Qe6 {[%clk
0:00:22.1]} 29. Qc2 {[%clk 0:01:27.9]} 29... Qf6 {[%clk 0:00:19.1]} 30. Rae1
{[%clk 0:01:22.8]} 30... Rbd8 {[%clk 0:00:18.6]} 31. Qb3+ {[%clk 0:01:03.4]}
31... Qe6 {[%clk 0:00:18.2]} 32. Qc2 {[%clk 0:00:53.8]} 32... Qf6 {[%clk
0:00:17.3]} 33. Re4 {[%clk 0:00:48.3]} 33... Rd4 {[%clk 0:00:14.4]} 34. Rxd4
{[%clk 0:00:45.8]} 34... Bxd4 {[%clk 0:00:13.9]} 35. Qc4+ {[%clk 0:00:46.4]}
35... Ne6 {[%clk 0:00:13.7]} 36. Nf3 {[%clk 0:00:33.8]} 36... c5 {[%clk
0:00:12.4]} 37. Ng5 {[%clk 0:00:29.3]} 37... Qxg5 {[%clk 0:00:09.2]} 38. Rxe6
{[%clk 0:00:27.3]} 38... Rxe6 {[%clk 0:00:07.2]} 39. Qxe6+ {[%clk 0:00:28.2]}
39... Kf8 {[%clk 0:00:06.9]} 40. Bd6+ {[%clk 0:00:28.7]} 1-0

[Event "*** SCC Grand Prix: Titled Tuesday Blitz"]
[Site "Chess.com"]
[Date "2020.06.09"]
[Round "5"]
[White "MarcoRiehle"]
[Black "amintabatabaei"]
[Result "0-1"]
[WhiteElo "2641"]
[BlackElo "2878"]
[TimeControl "180+1"]
[EndTime "9:56:59 PDT"]
[Termination "amintabatabaei won by resignation"]

1. e4 {[%clk 0:03:00.9]} 1... c6 {[%clk 0:02:56.8]} 2. c4 {[%clk 0:03:00.1]}
2... d5 {[%clk 0:02:57.7]} 3. exd5 {[%clk 0:03:00.8]} 3... cxd5 {[%clk
0:02:53.4]} 4. cxd5 {[%clk 0:03:01.7]} 4... Nf6 {[%clk 0:02:53.1]} 5. Nc3 {[%clk
0:03:02.1]} 5... Nxd5 {[%clk 0:02:51.7]} 6. Nf3 {[%clk 0:03:02.6]} 6... e6
{[%clk 0:02:48.7]} 7. d4 {[%clk 0:03:02.1]} 7... Bb4 {[%clk 0:02:45.9]} 8. Bd2
{[%clk 0:02:58.6]} 8... Nc6 {[%clk 0:02:45]} 9. Bd3 {[%clk 0:02:58.2]} 9... O-O
{[%clk 0:02:40.1]} 10. O-O {[%clk 0:02:57.7]} 10... Be7 {[%clk 0:02:40]} 11. Rc1
{[%clk 0:02:49.9]} 11... Ndb4 {[%clk 0:02:33.9]} 12. Bb1 {[%clk 0:02:49.2]}
12... Nxd4 {[%clk 0:02:33.3]} 13. Nxd4 {[%clk 0:02:18.9]} 13... Qxd4 {[%clk
0:02:33.7]} 14. Nb5 {[%clk 0:02:18.8]} 14... Qe5 {[%clk 0:01:49]} 15. Nc7 {[%clk
0:02:04.2]} 15... Rb8 {[%clk 0:01:27.1]} 16. Bc3 {[%clk 0:01:54.9]} 16... Qg5
{[%clk 0:01:13]} 17. f4 {[%clk 0:01:19]} 17... Qc5+ {[%clk 0:00:41.4]} 18. Bd4
{[%clk 0:01:17.4]} 18... Qa5 {[%clk 0:00:42.1]} 19. Be5 {[%clk 0:00:50.8]} 19...
Nc6 {[%clk 0:00:33.7]} 20. Rf3 {[%clk 0:00:21.2]} 20... Nxe5 {[%clk 0:00:27.9]}
21. fxe5 {[%clk 0:00:22.1]} 21... g6 {[%clk 0:00:21.8]} 22. Rh3 {[%clk
0:00:21.2]} 22... Bc5+ {[%clk 0:00:18.9]} 23. Kh1 {[%clk 0:00:19.2]} 23... Qxc7
{[%clk 0:00:19.1]} 24. Qe1 {[%clk 0:00:12.9]} 24... Qe7 {[%clk 0:00:07.9]} 25.
Qd2 {[%clk 0:00:08.9]} 25... b6 {[%clk 0:00:03.5]} 26. Qh6 {[%clk 0:00:08]}
26... f5 {[%clk 0:00:04.3]} 27. exf6 {[%clk 0:00:08.1]} 27... Rxf6 {[%clk
0:00:04.6]} 28. Re1 {[%clk 0:00:06.8]} 28... Bb7 {[%clk 0:00:04.7]} 29. Rg3
{[%clk 0:00:07.2]} 29... Rbf8 {[%clk 0:00:04.4]} 30. Qc1 {[%clk 0:00:03.1]}
30... Qf7 {[%clk 0:00:03.7]} 31. h3 {[%clk 0:00:03]} 31... Rf1+ {[%clk
0:00:03.8]} 32. Kh2 {[%clk 0:00:03.9]} 32... Bg1+ {[%clk 0:00:03.4]} 33. Kh1
{[%clk 0:00:04.2]} 33... Be3+ {[%clk 0:00:03.7]} 34. Kh2 {[%clk 0:00:04]} 34...
Bxc1 {[%clk 0:00:03.2]} 0-1

[Event "*** SCC Grand Prix: Titled Tuesday Blitz"]
[Site "Chess.com"]
[Date "2020.06.09"]
[Round "5"]
[White "mr65"]
[Black "crazy_but_lazy"]
[Result "0-1"]
[WhiteElo "2170"]
[BlackElo "2406"]
[TimeControl "180+1"]
[EndTime "9:56:59 PDT"]
[Termination "crazy_but_lazy won on time"]

1. e4 {[%clk 0:02:59.3]} 1... c5 {[%clk 0:02:57.5]} 2. d4 {[%clk 0:02:59.1]}
2... cxd4 {[%clk 0:02:47.8]} 3. c3 {[%clk 0:02:58.8]} 3... Nf6 {[%clk
0:02:47.6]} 4. e5 {[%clk 0:02:57.6]} 4... Nd5 {[%clk 0:02:47.7]} 5. Nf3 {[%clk
0:02:56.9]} 5... Nc6 {[%clk 0:02:38.1]} 6. cxd4 {[%clk 0:02:55.4]} 6... e6
{[%clk 0:02:34.4]} 7. Nc3 {[%clk 0:02:53.2]} 7... d6 {[%clk 0:02:30.3]} 8. Nxd5
{[%clk 0:02:44.5]} 8... exd5 {[%clk 0:02:31.2]} 9. exd6 {[%clk 0:02:38.8]} 9...
Bxd6 {[%clk 0:02:30.4]} 10. h3 {[%clk 0:02:38]} 10... O-O {[%clk 0:02:30.1]} 11.
Be2 {[%clk 0:02:37.8]} 11... h6 {[%clk 0:02:29.3]} 12. O-O {[%clk 0:02:37]}
12... Qf6 {[%clk 0:02:27.2]} 13. Be3 {[%clk 0:02:19.5]} 13... Bf5 {[%clk
0:02:14.8]} 14. a3 {[%clk 0:02:12.8]} 14... Rfe8 {[%clk 0:02:12.7]} 15. Qd2
{[%clk 0:02:11.7]} 15... Rad8 {[%clk 0:01:58.1]} 16. Rac1 {[%clk 0:02:10.4]}
16... Bb8 {[%clk 0:01:48.2]} 17. Rfe1 {[%clk 0:01:46.3]} 17... Be4 {[%clk
0:01:37.7]} 18. Nh2 {[%clk 0:01:38]} 18... Qd6 {[%clk 0:01:26.1]} 19. Nf1 {[%clk
0:01:37.2]} 19... a6 {[%clk 0:01:16.8]} 20. Bd1 {[%clk 0:01:27.8]} 20... Ne7
{[%clk 0:01:13.2]} 21. Ba4 {[%clk 0:01:22.1]} 21... b5 {[%clk 0:01:13.1]} 22.
Bb3 {[%clk 0:01:21.1]} 22... Ng6 {[%clk 0:01:06]} 23. f3 {[%clk 0:01:15.9]}
23... Bf5 {[%clk 0:01:02.7]} 24. Bf2 {[%clk 0:01:09.2]} 24... Rxe1 {[%clk
0:00:42.7]} 25. Rxe1 {[%clk 0:01:07.2]} 25... Qf6 {[%clk 0:00:43.3]} 26. Bg3
{[%clk 0:00:54.6]} 26... Ba7 {[%clk 0:00:38.3]} 27. Bf2 {[%clk 0:00:50.1]} 27...
h5 {[%clk 0:00:28.2]} 28. g4 {[%clk 0:00:46.4]} 28... hxg4 {[%clk 0:00:26.7]}
29. hxg4 {[%clk 0:00:40.7]} 29... Be6 {[%clk 0:00:26.2]} 30. g5 {[%clk
0:00:28.5]} 30... Qxf3 {[%clk 0:00:18]} 31. Bd1 {[%clk 0:00:27.9]} 31... Qh3
{[%clk 0:00:15.5]} 32. Re3 {[%clk 0:00:22.9]} 32... Qh7 {[%clk 0:00:13.3]} 33.
Bf3 {[%clk 0:00:16.8]} 33... Bb8 {[%clk 0:00:12.4]} 34. Bg2 {[%clk 0:00:13.6]}
34... Nf4 {[%clk 0:00:12.7]} 35. Rg3 {[%clk 0:00:11.8]} 35... Rc8 {[%clk
0:00:12.3]} 36. Rf3 {[%clk 0:00:07.4]} 36... Rc2 {[%clk 0:00:11.2]} 37. Qe3
{[%clk 0:00:05.4]} 37... Ne2+ {[%clk 0:00:10.4]} 38. Qxe2 {[%clk 0:00:02.6]}
38... Rxe2 {[%clk 0:00:11.3]} 0-1

[Event "*** SCC Grand Prix: Titled Tuesday Blitz"]
[Site "Chess.com"]
[Date "2020.06.09"]
[Round "5"]
[White "eljanov"]
[Black "FairChess_on_YouTube"]
[Result "0-1"]
[WhiteElo "2818"]
[BlackElo "3031"]
[TimeControl "180+1"]
[EndTime "9:57:00 PDT"]
[Termination "FairChess_on_YouTube won on time"]

1. Nf3 {[%clk 0:03:00.9]} 1... b5 {[%clk 0:02:57.8]} 2. g3 {[%clk 0:02:59.5]}
2... Bb7 {[%clk 0:02:57.9]} 3. Bg2 {[%clk 0:02:59.9]} 3... e6 {[%clk 0:02:57.7]}
4. O-O {[%clk 0:02:59.3]} 4... Nf6 {[%clk 0:02:56.9]} 5. d4 {[%clk 0:02:52.1]}
5... c5 {[%clk 0:02:54.9]} 6. c3 {[%clk 0:02:51.9]} 6... Be7 {[%clk 0:02:52.6]}
7. Bg5 {[%clk 0:02:51]} 7... O-O {[%clk 0:02:50.8]} 8. e3 {[%clk 0:02:43.7]}
8... cxd4 {[%clk 0:02:43.5]} 9. cxd4 {[%clk 0:02:41.8]} 9... d6 {[%clk
0:02:35.6]} 10. Qd3 {[%clk 0:02:26.3]} 10... g6 {[%clk 0:02:09.1]} 11. Rc1
{[%clk 0:02:18.6]} 11... a6 {[%clk 0:02:07.1]} 12. Nc3 {[%clk 0:02:15.1]} 12...
Nbd7 {[%clk 0:02:06]} 13. Nd2 {[%clk 0:01:41.6]} 13... Bxg2 {[%clk 0:02:05.2]}
14. Kxg2 {[%clk 0:01:42.5]} 14... Qb6 {[%clk 0:01:28.9]} 15. Nde4 {[%clk
0:01:36.7]} 15... Rfc8 {[%clk 0:01:22.9]} 16. Bxf6 {[%clk 0:01:27.8]} 16... Bxf6
{[%clk 0:01:16.7]} 17. a4 {[%clk 0:01:24.2]} 17... b4 {[%clk 0:01:07.8]} 18. Ne2
{[%clk 0:01:21.9]} 18... Be7 {[%clk 0:01:00.6]} 19. Nd2 {[%clk 0:01:18.2]} 19...
Qb7+ {[%clk 0:00:56.6]} 20. Kg1 {[%clk 0:01:17.9]} 20... d5 {[%clk 0:00:56.4]}
21. Rxc8+ {[%clk 0:01:12.2]} 21... Rxc8 {[%clk 0:00:55.9]} 22. Rc1 {[%clk
0:01:12.6]} 22... Rxc1+ {[%clk 0:00:54.8]} 23. Nxc1 {[%clk 0:01:12.4]} 23... Qc6
{[%clk 0:00:55.3]} 24. Ncb3 {[%clk 0:00:59.2]} 24... Qxa4 {[%clk 0:00:54.8]} 25.
Qc2 {[%clk 0:00:59.8]} 25... Bf8 {[%clk 0:00:48.2]} 26. Qc7 {[%clk 0:00:52.1]}
26... Qb5 {[%clk 0:00:45.9]} 27. Nf3 {[%clk 0:00:51.8]} 27... h6 {[%clk
0:00:31.5]} 28. Na5 {[%clk 0:00:45]} 28... Nf6 {[%clk 0:00:22.6]} 29. Nc6 {[%clk
0:00:34.9]} 29... Ne8 {[%clk 0:00:14.3]} 30. Qd7 {[%clk 0:00:31.5]} 30... Nd6
{[%clk 0:00:11.9]} 31. Nfe5 {[%clk 0:00:28.6]} 31... Qb7 {[%clk 0:00:11.3]} 32.
Qd8 {[%clk 0:00:20.8]} 32... Kg7 {[%clk 0:00:11.8]} 33. Nd7 {[%clk 0:00:19.2]}
33... Qc8 {[%clk 0:00:08]} 34. Qf6+ {[%clk 0:00:19.4]} 34... Kg8 {[%clk
0:00:07]} 35. Nce5 {[%clk 0:00:12.1]} 35... Qe8 {[%clk 0:00:05.4]} 36. Nxf8
{[%clk 0:00:10.5]} 36... Qxf8 {[%clk 0:00:05]} 37. Nc6 {[%clk 0:00:09.4]} 37...
Qe8 {[%clk 0:00:04.6]} 38. Nxb4 {[%clk 0:00:08.4]} 38... Ne4 {[%clk 0:00:05.2]}
39. Qf4 {[%clk 0:00:06.7]} 39... Qb5 {[%clk 0:00:05.8]} 0-1

[Event "*** SCC Grand Prix: Titled Tuesday Blitz"]
[Site "Chess.com"]
[Date "2020.06.09"]
[Round "5"]
[White "DenLaz"]
[Black "BillieKimbah"]
[Result "1-0"]
[WhiteElo "2653"]
[BlackElo "2852"]
[TimeControl "180+1"]
[EndTime "9:57:00 PDT"]
[Termination "DenLaz won on time"]

1. d4 {[%clk 0:03:00.4]} 1... Nf6 {[%clk 0:02:52.5]} 2. c4 {[%clk 0:03:00.2]}
2... g6 {[%clk 0:02:53]} 3. g3 {[%clk 0:02:59.4]} 3... Bg7 {[%clk 0:02:52.8]} 4.
Bg2 {[%clk 0:03:00]} 4... O-O {[%clk 0:02:53.1]} 5. Nc3 {[%clk 0:02:59.5]} 5...
d6 {[%clk 0:02:52.5]} 6. Nf3 {[%clk 0:02:52.6]} 6... Nbd7 {[%clk 0:02:52.7]} 7.
O-O {[%clk 0:02:52.8]} 7... e5 {[%clk 0:02:52.9]} 8. e4 {[%clk 0:02:53.3]} 8...
c6 {[%clk 0:02:52.6]} 9. h3 {[%clk 0:02:52.6]} 9... Qb6 {[%clk 0:02:52.1]} 10.
Re1 {[%clk 0:02:51.1]} 10... exd4 {[%clk 0:02:51.1]} 11. Nxd4 {[%clk 0:02:52]}
11... Ne8 {[%clk 0:02:50.5]} 12. Nb3 {[%clk 0:02:48.4]} 12... a5 {[%clk
0:02:50.3]} 13. Be3 {[%clk 0:02:48.8]} 13... Qb4 {[%clk 0:02:50.5]} 14. Nd4
{[%clk 0:02:46]} 14... Qxc4 {[%clk 0:02:24.4]} 15. Bf1 {[%clk 0:02:42.3]} 15...
Qb4 {[%clk 0:02:23.2]} 16. a3 {[%clk 0:02:42.3]} 16... Qb6 {[%clk 0:02:07.5]}
17. Ne6 {[%clk 0:02:31.4]} 17... Qxb2 {[%clk 0:02:07.2]} 18. Nxg7 {[%clk
0:02:31.5]} 18... Nxg7 {[%clk 0:01:51.9]} 19. Nd5 {[%clk 0:02:27.5]} 19... Ne6
{[%clk 0:01:38.3]} 20. Nc7 {[%clk 0:02:19]} 20... Qxa1 {[%clk 0:00:17.3]} 21.
Qxa1 {[%clk 0:02:16.5]} 21... Nxc7 {[%clk 0:00:18.2]} 22. Bh6 {[%clk 0:02:14.5]}
22... Ne6 {[%clk 0:00:18.2]} 23. Bxf8 {[%clk 0:02:13.9]} 23... Ndxf8 {[%clk
0:00:17.5]} 24. Rd1 {[%clk 0:02:12.4]} 24... c5 {[%clk 0:00:17.7]} 25. Rxd6
{[%clk 0:02:03.8]} 25... Nd4 {[%clk 0:00:15.2]} 26. Qc3 {[%clk 0:01:52.9]} 26...
Bxh3 {[%clk 0:00:11.3]} 27. Rd5 {[%clk 0:01:20.4]} 27... Bxf1 {[%clk 0:00:09.6]}
28. Kxf1 {[%clk 0:01:21.3]} 28... Nfe6 {[%clk 0:00:10.1]} 29. f4 {[%clk
0:01:19.7]} 29... Re8 {[%clk 0:00:09.9]} 30. f5 {[%clk 0:01:13.3]} 30... gxf5
{[%clk 0:00:10.3]} 31. exf5 {[%clk 0:01:13.8]} 31... Ng5 {[%clk 0:00:11]} 32.
Qxc5 {[%clk 0:01:08.6]} 32... Ndf3 {[%clk 0:00:07.8]} 33. Rd1 {[%clk 0:01:02.9]}
33... Nh2+ {[%clk 0:00:07.8]} 34. Kg1 {[%clk 0:00:28.6]} 34... Nhf3+ {[%clk
0:00:07.5]} 35. Kh1 {[%clk 0:00:25.1]} 35... Ne4 {[%clk 0:00:07.7]} 36. Qc2
{[%clk 0:00:14.9]} 36... h5 {[%clk 0:00:03.6]} 37. Kg2 {[%clk 0:00:14.2]} 37...
Nfg5 {[%clk 0:00:03.4]} 38. Re1 {[%clk 0:00:14.4]} 38... Re5 {[%clk 0:00:03.6]}
39. f6 {[%clk 0:00:14]} 39... Re6 {[%clk 0:00:03.4]} 40. Qc8+ {[%clk 0:00:14]}
40... Kh7 {[%clk 0:00:03.5]} 41. Qc2 {[%clk 0:00:14.6]} 41... Kg6 {[%clk
0:00:02.8]} 42. Rf1 {[%clk 0:00:15.1]} 42... b5 {[%clk 0:00:02.5]} 43. Qc8
{[%clk 0:00:15.4]} 1-0

[Event "*** SCC Grand Prix: Titled Tuesday Blitz"]
[Site "Chess.com"]
[Date "2020.06.09"]
[Round "5"]
[White "Haykos"]
[Black "totoro9"]
[Result "1-0"]
[WhiteElo "2588"]
[BlackElo "2378"]
[TimeControl "180+1"]
[EndTime "9:57:00 PDT"]
[Termination "Haykos won on time"]

1. e4 {[%clk 0:03:00.9]} 1... c5 {[%clk 0:02:57.8]} 2. Nf3 {[%clk 0:03:01.1]}
2... d6 {[%clk 0:02:57.6]} 3. Bb5+ {[%clk 0:03:01.7]} 3... Bd7 {[%clk
0:02:57.2]} 4. Bxd7+ {[%clk 0:03:01.3]} 4... Qxd7 {[%clk 0:02:56.1]} 5. O-O
{[%clk 0:03:00.8]} 5... Nf6 {[%clk 0:02:52.3]} 6. e5 {[%clk 0:02:56.1]} 6...
dxe5 {[%clk 0:02:52.1]} 7. Nxe5 {[%clk 0:02:57]} 7... Qc8 {[%clk 0:02:50.5]} 8.
d3 {[%clk 0:02:48.9]} 8... e6 {[%clk 0:02:48]} 9. Nc3 {[%clk 0:02:48.2]} 9...
Bd6 {[%clk 0:02:46.5]} 10. Nc4 {[%clk 0:02:47.4]} 10... Be7 {[%clk 0:02:23.9]}
11. Bf4 {[%clk 0:02:45.4]} 11... Qc6 {[%clk 0:02:21.2]} 12. a4 {[%clk
0:02:41.6]} 12... O-O {[%clk 0:02:12.3]} 13. Ne5 {[%clk 0:02:20.3]} 13... Qc8
{[%clk 0:02:10.6]} 14. Qf3 {[%clk 0:02:20.2]} 14... Nbd7 {[%clk 0:02:08.6]} 15.
Nc4 {[%clk 0:02:10.5]} 15... a6 {[%clk 0:01:08.7]} 16. Rfe1 {[%clk 0:01:59]}
16... Rd8 {[%clk 0:01:01]} 17. a5 {[%clk 0:01:05.9]} 17... Qc6 {[%clk
0:00:39.5]} 18. Qh3 {[%clk 0:00:34.3]} 18... Bf8 {[%clk 0:00:22.4]} 19. Bg5
{[%clk 0:00:16.3]} 19... h6 {[%clk 0:00:22.3]} 20. Bf4 {[%clk 0:00:15.3]} 20...
Nd5 {[%clk 0:00:21.7]} 21. Bd2 {[%clk 0:00:11.7]} 21... N7f6 {[%clk 0:00:19.6]}
22. Ne5 {[%clk 0:00:11.8]} 22... Qc7 {[%clk 0:00:19.5]} 23. Ra4 {[%clk
0:00:09.3]} 23... Bd6 {[%clk 0:00:05.3]} 24. Nc4 {[%clk 0:00:08.7]} 24... Be7
{[%clk 0:00:04.8]} 25. Ne5 {[%clk 0:00:08.4]} 25... Bd6 {[%clk 0:00:04.6]} 26.
Nf3 {[%clk 0:00:07.2]} 26... Nb4 {[%clk 0:00:04.5]} 27. Rc1 {[%clk 0:00:05.1]}
27... Bf4 {[%clk 0:00:04.8]} 28. Raa1 {[%clk 0:00:02.1]} 28... Bxd2 {[%clk
0:00:05]} 29. Nxd2 {[%clk 0:00:02.5]} 29... Nfd5 {[%clk 0:00:05]} 30. Nc4 {[%clk
0:00:02.6]} 30... Nxc3 {[%clk 0:00:04.7]} 31. bxc3 {[%clk 0:00:03.5]} 31... Nd5
{[%clk 0:00:04.9]} 32. Ra2 {[%clk 0:00:03.4]} 32... Rd7 {[%clk 0:00:04.3]} 33.
Ra3 {[%clk 0:00:03.2]} 33... Re7 {[%clk 0:00:04.3]} 34. Rb3 {[%clk 0:00:03.6]}
34... Rb8 {[%clk 0:00:04]} 35. Rcb1 {[%clk 0:00:04.2]} 35... f5 {[%clk 0:00:03]}
36. Qf3 {[%clk 0:00:04.6]} 36... Nf6 {[%clk 0:00:02.8]} 37. Qe3 {[%clk
0:00:04.1]} 37... g5 {[%clk 0:00:01.3]} 38. Qe5 {[%clk 0:00:04.5]} 1-0